[Event "FIDE World Rapid Chess Championship 2021"]
[White "Bluebaum, Matthias"]
[Black "Krasenkow, Michal"]
[WhiteFideId "24651516"]
[BlackFideId "1113100"]
[WhiteElo "2575"]
[BlackElo "2430"]
[Result "1-0"]
[Round "04"]
[TimeControl "900+10"]
[Date "2021.12.26"]
[WhiteClock "0:00:53"]
[BlackClock "0:01:01"]

1. d4 {[%clk 0:15:33]}  d5 {[%clk 0:15:37]} 2. c4 {[%clk 0:15:33]}  e6 {[%clk 0:15:37]} 3. Nc3 {[%clk 0:15:33]}  c6 {[%clk 0:15:37]} 4. e3 {[%clk 0:15:33]}  Bd6 {[%clk 0:15:37]} 5. Bd3 {[%clk 0:15:33]}  f5 {[%clk 0:15:37]} 6. Nh3 {[%clk 0:15:33]}  Nf6 {[%clk 0:15:37]} 7. O-O {[%clk 0:15:33]}  O-O {[%clk 0:15:37]} 8. Qc2 {[%clk 0:15:33]}  Ne4 {[%clk 0:15:14]} 9. f3 {[%clk 0:14:59]}  Nxc3 {[%clk 0:15:14]} 10. bxc3 {[%clk 0:14:59]}  e5 {[%clk 0:15:14]} 11. cxd5 {[%clk 0:14:59]}  cxd5 {[%clk 0:15:14]} 12. Qb3 {[%clk 0:13:43]}  Kh8 {[%clk 0:14:38]} 13. f4 {[%clk 0:13:43]}  e4 {[%clk 0:13:11]} 14. Be2 {[%clk 0:12:18]}  Qa5 {[%clk 0:13:11]} 15. Bd2 {[%clk 0:12:18]}  Nd7 {[%clk 0:13:11]} 16. Rfd1 {[%clk 0:10:54]}  Nf6 {[%clk 0:12:44]} 17. c4 {[%clk 0:10:54]}  Qd8 {[%clk 0:07:55]} 18. cxd5 {[%clk 0:10:18]}  h6 {[%clk 0:07:55]} 19. Rdc1 {[%clk 0:10:22]}  Be7 {[%clk 0:07:56]} 20. Bc4 {[%clk 0:08:19]}  b6 {[%clk 0:07:54]} 21. Be1 {[%clk 0:08:19]}  Bb7 {[%clk 0:07:54]} 22. Bh4 {[%clk 0:08:25]}  Rc8 {[%clk 0:07:54]} 23. Nf2 {[%clk 0:08:25]}  Qd6 {[%clk 0:07:54]} 24. Nd1 {[%clk 0:07:32]}  Rc7 {[%clk 0:07:09]} 25. Nc3 {[%clk 0:06:49]}  a6 {[%clk 0:07:08]} 26. a4 {[%clk 0:06:49]}  Rfc8 {[%clk 0:07:08]} 27. Bxf6 {[%clk 0:06:49]}  Bxf6 {[%clk 0:07:08]} 28. Ne2 {[%clk 0:06:49]}  Be7 {[%clk 0:07:06]} 29. Rab1 {[%clk 0:02:45]}  Qa3 {[%clk 0:07:06]} 30. Kf2 {[%clk 0:02:33]}  Qxb3 {[%clk 0:05:06]} 31. Bxb3 {[%clk 0:02:33]}  b5 {[%clk 0:05:06]} 32. axb5 {[%clk 0:01:56]}  axb5 {[%clk 0:03:05]} 33. Rxc7 {[%clk 0:01:56]}  Rxc7 {[%clk 0:03:05]} 34. Ra1 {[%clk 0:01:56]}  b4 {[%clk 0:03:05]} 35. Ke1 {[%clk 0:01:56]}  g6 {[%clk 0:03:05]} 36. Kd2 {[%clk 0:01:56]}  Kg7 {[%clk 0:03:05]} 37. g4 {[%clk 0:01:56]}  Kf6 {[%clk 0:03:16]} 38. gxf5 {[%clk 0:00:48]}  gxf5 {[%clk 0:03:16]} 39. Ra5 {[%clk 0:00:48]}  Bd6 {[%clk 0:03:16]} 40. Rb5 {[%clk 0:00:48]}  Bc8 {[%clk 0:03:16]} 41. Rb6 {[%clk 0:00:48]}  Ke7 {[%clk 0:03:16]} 42. Ba4 {[%clk 0:00:48]}  Ra7 {[%clk 0:03:16]} 43. Bb3 {[%clk 0:00:49]}  Ra1 {[%clk 0:02:13]} 44. Nc1 {[%clk 0:00:48]}  Kd7 {[%clk 0:02:13]} 45. Ba2 {[%clk 0:00:48]}  b3 {[%clk 0:02:13]} 46. Rxb3 {[%clk 0:00:48]}  Ba6 {[%clk 0:00:35]} 47. Rb6 {[%clk 0:01:00]}  Bd3 {[%clk 0:00:35]} 48. Nxd3 {[%clk 0:00:34]}  Rxa2+ {[%clk 0:01:08]} 49. Nb2 {[%clk 0:00:31]}  Ba3 {[%clk 0:01:08]} 50. Kc3 {[%clk 0:00:31]}  Bxb2+ {[%clk 0:01:08]} 51. Rxb2 {[%clk 0:00:31]}  Ra3+ {[%clk 0:01:08]} 52. Rb3 {[%clk 0:00:31]}  Ra2 {[%clk 0:01:08]} 53. Rb7+ {[%clk 0:00:31]}  Kd6 {[%clk 0:01:08]} 54. h4 {[%clk 0:00:31]}  Re2 {[%clk 0:01:08]} 55. Kc4 {[%clk 0:00:31]}  Rc2+ {[%clk 0:01:08]} 56. Kb3 {[%clk 0:00:31]}  Re2 {[%clk 0:01:08]} 57. Rf7 {[%clk 0:00:31]}  Kxd5 {[%clk 0:00:59]} 58. Rxf5+ {[%clk 0:00:49]}  Kd6 {[%clk 0:00:59]} 59. Rh5 {[%clk 0:00:49]}  Rxe3+ {[%clk 0:00:59]} 60. Kc4 {[%clk 0:00:49]}  Rf3 {[%clk 0:00:59]} 61. Rxh6+ {[%clk 0:00:49]}  Kd7 {[%clk 0:00:59]} 62. Rf6 {[%clk 0:00:49]}  Rh3 {[%clk 0:00:59]} 63. d5 {[%clk 0:00:49]}  Ra3 {[%clk 0:00:59]} 64. Kd4 {[%clk 0:00:49]}  Rh3 {[%clk 0:00:23]} 65. Kxe4 {[%clk 0:00:23]}  Rxh4 {[%clk 0:00:23]} 66. Ke5 {[%clk 0:00:23]}  Rh1 {[%clk 0:00:23]} 67. Rf7+ {[%clk 0:00:23]}  Ke8 {[%clk 0:00:47]} 68. Ra7 {[%clk 0:00:48]}  Re1+ {[%clk 0:00:47]} 69. Kd6 {[%clk 0:00:48]}  Rf1 {[%clk 0:00:47]} 70. Ra8+ {[%clk 0:00:48]}  Kf7 {[%clk 0:00:47]} 71. Ra4 {[%clk 0:00:48]}  Rd1 {[%clk 0:00:47]} 72. Kc6 {[%clk 0:00:48]}  Ke7 {[%clk 0:00:47]} 73. Re4+ {[%clk 0:00:48]}  Kd8 {[%clk 0:00:47]} 74. Kd6 {[%clk 0:00:48]}  Rh1 {[%clk 0:00:47]} 75. f5 {[%clk 0:00:48]}  Rf1 {[%clk 0:00:47]} 76. Ke6 {[%clk 0:00:48]}  Ke8 {[%clk 0:00:47]} 77. d6 {[%clk 0:00:48]}  Rd1 {[%clk 0:01:03]} 78. f6 {[%clk 0:00:53]}  Kd8 {[%clk 0:01:01]} 79. f7 {[%clk 0:00:53]}  Rf1 {[%clk 0:01:01]} 80. Re5 {[%clk 0:00:53]} 1-0


[Site "http://www.Chess.com"]

[Event "FIDE World Rapid Chess Championship 2021"]
[White "Martirosyan, Haik M."]
[Black "Ter-Sahakyan, Samvel"]
[WhiteFideId "13306553"]
[BlackFideId "13302531"]
[WhiteElo "2377"]
[BlackElo "2573"]
[Result "1/2-1/2"]
[Round "04"]
[TimeControl "900+10"]
[Date "2021.12.26"]
[WhiteClock "0:03:50"]
[BlackClock "0:04:05"]

1. d4 {[%clk 0:15:44]}  Nf6 {[%clk 0:15:46]} 2. c4 {[%clk 0:15:44]}  e6 {[%clk 0:15:46]} 3. Nf3 {[%clk 0:15:44]}  d5 {[%clk 0:15:46]} 4. Nc3 {[%clk 0:15:44]}  Bb4 {[%clk 0:15:46]} 5. Bg5 {[%clk 0:15:44]}  h6 {[%clk 0:15:46]} 6. Bxf6 {[%clk 0:15:44]}  Qxf6 {[%clk 0:15:46]} 7. Qa4+ {[%clk 0:15:44]}  Nc6 {[%clk 0:15:46]} 8. e3 {[%clk 0:15:44]}  O-O {[%clk 0:15:46]} 9. Rc1 {[%clk 0:15:44]}  Qg6 {[%clk 0:15:46]} 10. Qc2 {[%clk 0:15:02]}  Qxc2 {[%clk 0:15:54]} 11. Rxc2 {[%clk 0:15:02]}  Rd8 {[%clk 0:15:54]} 12. a3 {[%clk 0:15:02]}  Bf8 {[%clk 0:15:54]} 13. Bd3 {[%clk 0:15:02]}  Ne7 {[%clk 0:16:15]} 14. Ke2 {[%clk 0:12:44]}  Bd7 {[%clk 0:13:19]} 15. c5 {[%clk 0:12:44]}  a5 {[%clk 0:13:18]} 16. h4 {[%clk 0:09:53]}  Be8 {[%clk 0:11:01]} 17. Kd2 {[%clk 0:09:53]}  g6 {[%clk 0:10:35]} 18. g4 {[%clk 0:07:37]}  Bg7 {[%clk 0:10:35]} 19. g5 {[%clk 0:07:37]}  h5 {[%clk 0:10:35]} 20. Bb5 {[%clk 0:07:24]}  Bxb5 {[%clk 0:08:38]} 21. Nxb5 {[%clk 0:07:24]}  Rd7 {[%clk 0:06:07]} 22. b4 {[%clk 0:07:04]}  Nc6 {[%clk 0:06:01]} 23. Rb1 {[%clk 0:05:01]}  e5 {[%clk 0:06:01]} 24. dxe5 {[%clk 0:05:01]}  Bxe5 {[%clk 0:06:01]} 25. Nbd4 {[%clk 0:03:50]}  Bxd4 {[%clk 0:04:34]} 26. exd4 {[%clk 0:03:50]}  axb4 {[%clk 0:04:34]} 27. axb4 {[%clk 0:03:50]}  Ra3 {[%clk 0:04:34]} 28. Rc3 {[%clk 0:03:50]}  Ra2+ {[%clk 0:04:34]} 29. Rc2 {[%clk 0:03:50]}  Ra3 {[%clk 0:04:34]} 30. Rc3 {[%clk 0:03:50]}  Ra2+ {[%clk 0:04:34]} 31. Rc2 {[%clk 0:03:50]}  Ra3 {[%clk 0:04:05]} 1/2-1/2


[Site "http://www.Chess.com"]

[Event "FIDE World Rapid Chess Championship 2021"]
[White "Sindarov, Javokhir"]
[Black "Vakhidov, Jakhongir"]
[WhiteFideId "14205483"]
[BlackFideId "14201801"]
[WhiteElo "2353"]
[BlackElo "2566"]
[Result "1/2-1/2"]
[Round "04"]
[TimeControl "900+10"]
[Date "2021.12.26"]
[WhiteClock "0:11:15"]
[BlackClock "0:15:04"]

1. Nf3 {[%clk 0:15:18]}  g6 {[%clk 0:15:00]} 2. g3 {[%clk 0:15:18]}  Bg7 {[%clk 0:15:00]} 3. Bg2 {[%clk 0:15:18]}  c5 {[%clk 0:15:00]} 4. O-O {[%clk 0:15:18]}  Nc6 {[%clk 0:15:00]} 5. c3 {[%clk 0:15:18]}  e5 {[%clk 0:15:00]} 6. e4 {[%clk 0:14:19]}  Nge7 {[%clk 0:15:33]} 7. d3 {[%clk 0:14:19]}  d5 {[%clk 0:15:33]} 8. Nbd2 {[%clk 0:14:19]}  O-O {[%clk 0:15:33]} 9. Re1 {[%clk 0:14:19]}  d4 {[%clk 0:15:33]} 10. cxd4 {[%clk 0:12:56]}  cxd4 {[%clk 0:15:04]} 11. b3 {[%clk 0:12:56]}  Be6 {[%clk 0:15:04]} 12. Ng5 {[%clk 0:12:56]}  Bd7 {[%clk 0:15:04]} 13. f4 {[%clk 0:11:15]} 1/2-1/2


[Site "http://www.Chess.com"]

[Event "FIDE World Rapid Chess Championship 2021"]
[White "Corrales Jimenez, Fidel"]
[Black "Peng, Li Min"]
[WhiteFideId "3506690"]
[BlackFideId "14112620"]
[WhiteElo "2561"]
[BlackElo "2411"]
[Result "1-0"]
[Round "04"]
[TimeControl "900+10"]
[Date "2021.12.26"]
[WhiteClock "0:01:35"]
[BlackClock "0:00:22"]

1. e4 {[%clk 0:15:17]}  c5 {[%clk 0:15:00]} 2. Nf3 {[%clk 0:15:17]}  d6 {[%clk 0:15:00]} 3. d4 {[%clk 0:15:17]}  cxd4 {[%clk 0:15:00]} 4. Nxd4 {[%clk 0:15:17]}  Nf6 {[%clk 0:15:00]} 5. Nc3 {[%clk 0:15:17]}  a6 {[%clk 0:15:00]} 6. Bc4 {[%clk 0:15:17]}  e6 {[%clk 0:15:00]} 7. Be3 {[%clk 0:15:17]}  Qc7 {[%clk 0:15:00]} 8. Qe2 {[%clk 0:15:17]}  Bd7 {[%clk 0:15:00]} 9. O-O-O {[%clk 0:15:17]}  Nc6 {[%clk 0:15:00]} 10. Bb3 {[%clk 0:15:34]}  Rc8 {[%clk 0:15:07]} 11. g4 {[%clk 0:15:34]}  Nxd4 {[%clk 0:15:07]} 12. Rxd4 {[%clk 0:15:34]}  Bc6 {[%clk 0:15:07]} 13. g5 {[%clk 0:14:49]}  Nd7 {[%clk 0:14:00]} 14. f4 {[%clk 0:14:49]}  Be7 {[%clk 0:13:51]} 15. Rhd1 {[%clk 0:13:38]}  O-O {[%clk 0:13:51]} 16. f5 {[%clk 0:13:38]}  Nc5 {[%clk 0:13:51]} 17. f6 {[%clk 0:13:47]}  gxf6 {[%clk 0:11:51]} 18. gxf6 {[%clk 0:13:47]}  Bxf6 {[%clk 0:11:51]} 19. Rxd6 {[%clk 0:13:47]}  Nxb3+ {[%clk 0:12:08]} 20. axb3 {[%clk 0:09:27]}  Be5 {[%clk 0:12:08]} 21. Qh5 {[%clk 0:08:31]}  f6 {[%clk 0:10:22]} 22. Rxe6 {[%clk 0:08:31]}  Bxe4 {[%clk 0:10:22]} 23. Bb6 {[%clk 0:08:31]}  Bg6 {[%clk 0:10:22]} 24. Qh3 {[%clk 0:08:11]}  Qf7 {[%clk 0:09:49]} 25. Bd4 {[%clk 0:05:50]}  Rfe8 {[%clk 0:09:49]} 26. Rxe8+ {[%clk 0:05:50]}  Rxe8 {[%clk 0:09:49]} 27. Bxe5 {[%clk 0:05:50]}  fxe5 {[%clk 0:09:49]} 28. Nd5 {[%clk 0:05:50]}  Rd8 {[%clk 0:09:49]} 29. c4 {[%clk 0:05:50]}  Rf8 {[%clk 0:07:38]} 30. Qg3 {[%clk 0:05:47]}  Qg7 {[%clk 0:07:38]} 31. Qe3 {[%clk 0:05:56]}  Kh8 {[%clk 0:04:49]} 32. Rg1 {[%clk 0:05:56]}  Re8 {[%clk 0:04:49]} 33. h4 {[%clk 0:05:56]}  Qf7 {[%clk 0:03:04]} 34. Kd2 {[%clk 0:05:38]}  Qf5 {[%clk 0:03:04]} 35. Kc3 {[%clk 0:02:31]}  Qc2+ {[%clk 0:03:04]} 36. Kb4 {[%clk 0:02:31]}  a5+ {[%clk 0:03:04]} 37. Kb5 {[%clk 0:02:20]}  Re6 {[%clk 0:01:03]} 38. Qf3 {[%clk 0:02:20]}  Be8+ {[%clk 0:01:03]} 39. Kxa5 {[%clk 0:02:20]}  Qd2+ {[%clk 0:01:03]} 40. Qc3 {[%clk 0:02:20]}  Qf2 {[%clk 0:01:03]} 41. Qe3 {[%clk 0:02:20]}  Qxb2 {[%clk 0:01:03]} 42. Kb4 {[%clk 0:02:20]}  Qd4 {[%clk 0:00:54]} 43. Qxd4 {[%clk 0:01:58]}  exd4 {[%clk 0:00:54]} 44. Rd1 {[%clk 0:01:58]}  Bc6 {[%clk 0:00:54]} 45. Rxd4 {[%clk 0:01:58]}  Kg7 {[%clk 0:00:54]} 46. Kc5 {[%clk 0:01:58]}  Re5 {[%clk 0:00:54]} 47. b4 {[%clk 0:01:58]}  Be8 {[%clk 0:00:54]} 48. Kb6 {[%clk 0:01:22]}  h5 {[%clk 0:00:28]} 49. b5 {[%clk 0:01:27]}  Re1 {[%clk 0:00:28]} 50. Kxb7 {[%clk 0:01:27]}  Bd7 {[%clk 0:00:28]} 51. Kc7 {[%clk 0:01:35]}  Bg4 {[%clk 0:00:22]} 52. b6 {[%clk 0:01:35]}  Rd1 {[%clk 0:00:22]} 53. Rxd1 {[%clk 0:01:35]}  Bxd1 {[%clk 0:00:22]} 54. b7 {[%clk 0:01:35]} 1-0


[Site "http://www.Chess.com"]

[Event "FIDE World Rapid Chess Championship 2021"]
[White "Shoker, Samy"]
[Black "Ivic, Velimir"]
[WhiteFideId "627143"]
[BlackFideId "950122"]
[WhiteElo "2550"]
[BlackElo "2357"]
[Result "0-1"]
[Round "04"]
[TimeControl "900+10"]
[Date "2021.12.26"]
[WhiteClock "0:00:00"]
[BlackClock "0:00:00"]

1. Nf3 {[%clk 0:15:08]}  Nf6 {[%clk 0:15:09]} 2. g3 {[%clk 0:15:08]}  g6 {[%clk 0:15:09]} 3. Bg2 {[%clk 0:15:08]}  Bg7 {[%clk 0:15:09]} 4. O-O {[%clk 0:15:08]}  O-O {[%clk 0:15:09]} 5. d3 {[%clk 0:15:08]}  d5 {[%clk 0:15:09]} 6. Nbd2 {[%clk 0:15:08]}  c5 {[%clk 0:15:09]} 7. e4 {[%clk 0:15:08]}  Nc6 {[%clk 0:15:09]} 8. Re1 {[%clk 0:15:08]}  e5 {[%clk 0:15:09]} 9. a3 {[%clk 0:14:41]}  Re8 {[%clk 0:15:09]} 10. exd5 {[%clk 0:14:41]}  Nxd5 {[%clk 0:15:09]} 11. Rb1 {[%clk 0:14:41]}  b6 {[%clk 0:15:11]} 12. c4 {[%clk 0:12:46]}  Nc7 {[%clk 0:14:25]} 13. b4 {[%clk 0:12:46]}  Bf5 {[%clk 0:13:18]} 14. Qa4 {[%clk 0:11:06]}  Bd7 {[%clk 0:07:56]} 15. b5 {[%clk 0:10:54]}  Nd4 {[%clk 0:07:56]} 16. Nxd4 {[%clk 0:10:54]}  cxd4 {[%clk 0:07:56]} 17. Ne4 {[%clk 0:09:13]}  Ne6 {[%clk 0:07:25]} 18. Qd1 {[%clk 0:09:13]}  f5 {[%clk 0:06:57]} 19. Nd2 {[%clk 0:07:57]}  Qc7 {[%clk 0:06:18]} 20. Bxa8 {[%clk 0:07:57]}  Rxa8 {[%clk 0:06:18]} 21. Qf3 {[%clk 0:07:57]}  Re8 {[%clk 0:06:18]} 22. Nb3 {[%clk 0:07:57]}  Bc8 {[%clk 0:06:01]} 23. c5 {[%clk 0:06:46]}  bxc5 {[%clk 0:05:44]} 24. Qc6 {[%clk 0:06:46]}  Qxc6 {[%clk 0:04:51]} 25. bxc6 {[%clk 0:05:16]}  Ba6 {[%clk 0:04:51]} 26. Na5 {[%clk 0:05:16]}  Bxd3 {[%clk 0:04:51]} 27. Rb7 {[%clk 0:05:16]}  Be4 {[%clk 0:04:21]} 28. Rxa7 {[%clk 0:04:07]}  d3 {[%clk 0:04:02]} 29. Be3 {[%clk 0:04:07]}  f4 {[%clk 0:04:02]} 30. Bc1 {[%clk 0:02:18]}  Ng5 {[%clk 0:03:30]} 31. Kf1 {[%clk 0:02:18]}  Nf3 {[%clk 0:03:30]} 32. Rd1 {[%clk 0:00:05]}  Nxh2+ {[%clk 0:03:30]} 33. Kg1 {[%clk 0:00:05]}  Nf3+ {[%clk 0:03:30]} 34. Kf1 {[%clk 0:00:05]}  fxg3 {[%clk 0:03:30]} 35. Be3 {[%clk 0:00:00]}  c4 {[%clk 0:01:42]} 36. Rd7 {[%clk 0:00:00]}  c3 {[%clk 0:01:42]} 37. fxg3 {[%clk 0:00:00]}  d2 {[%clk 0:01:42]} 38. Bxd2 {[%clk 0:00:00]}  Nxd2+ {[%clk 0:00:17]} 39. Ke1 {[%clk 0:00:00]}  Bf5 {[%clk 0:00:17]} 40. Rd5 {[%clk 0:00:00]}  c2 {[%clk 0:00:17]} 41. Rc1 {[%clk 0:00:00]}  Nf3+ {[%clk 0:00:17]} 42. Kf2 {[%clk 0:00:00]}  Bh6 {[%clk 0:00:17]} 43. Rxc2 {[%clk 0:00:00]}  Bxc2 {[%clk 0:00:17]} 44. c7 {[%clk 0:00:00]}  Bf5 {[%clk 0:00:17]} 45. Rd8 {[%clk 0:00:00]}  Kf7 {[%clk 0:00:17]} 46. Kxf3 {[%clk 0:00:00]}  e4+ {[%clk 0:00:00]} 47. Kg2 {[%clk 0:00:00]}  e3 {[%clk 0:00:00]} 48. Nc4 {[%clk 0:00:00]}  Bf8 {[%clk 0:00:00]} 49. Kf3 {[%clk 0:00:00]}  e2 {[%clk 0:00:00]} 50. Rxe8 {[%clk 0:00:00]}  Kxe8 {[%clk 0:00:00]} 51. Kxe2 {[%clk 0:00:00]}  Kd7 {[%clk 0:00:00]} 52. Kf3 {[%clk 0:00:00]}  Kxc7 {[%clk 0:00:00]} 53. a4 {[%clk 0:00:00]}  Kc6 {[%clk 0:00:00]} 54. Ne3 {[%clk 0:00:00]}  Be6 {[%clk 0:00:00]} 55. Ke4 {[%clk 0:00:00]}  Bd6 {[%clk 0:00:00]} 56. g4 {[%clk 0:00:00]}  Kc5 {[%clk 0:00:00]} 57. Kf3 {[%clk 0:00:00]}  Kb4 {[%clk 0:00:00]} 58. Nc2+ {[%clk 0:00:00]}  Kxa4 {[%clk 0:00:00]} 59. Nd4 {[%clk 0:00:00]}  Bd5+ {[%clk 0:00:00]} 60. Ke2 {[%clk 0:00:00]}  Kb4 {[%clk 0:00:00]} 61. Nc2+ {[%clk 0:00:00]}  Kc5 {[%clk 0:00:00]} 62. Ke3 {[%clk 0:00:00]}  Be5 {[%clk 0:00:00]} 63. Ne1 {[%clk 0:00:00]}  Bd4+ {[%clk 0:00:00]} 64. Kf4 {[%clk 0:00:00]}  Bf6 {[%clk 0:00:00]} 65. Nd3+ {[%clk 0:00:00]}  Kd6 {[%clk 0:00:00]} 66. g5 {[%clk 0:00:00]}  Bd4 {[%clk 0:00:00]} 67. Kg4 {[%clk 0:00:00]}  Be4 {[%clk 0:00:00]} 68. Nf4 {[%clk 0:00:00]}  Bf5+ {[%clk 0:00:00]} 69. Kf3 {[%clk 0:00:00]}  Ke5 {[%clk 0:00:00]} 70. Ng2 {[%clk 0:00:00]}  Be4+ {[%clk 0:00:00]} 0-1


[Site "http://www.Chess.com"]

[Event "FIDE World Rapid Chess Championship 2021"]
[White "Petrovskyi, Vadym"]
[Black "Piorun, Kacper"]
[WhiteFideId "14165210"]
[BlackFideId "1130420"]
[WhiteElo "2282"]
[BlackElo "2547"]
[Result "1-0"]
[Round "04"]
[TimeControl "900+10"]
[Date "2021.12.26"]
[WhiteClock "0:08:16"]
[BlackClock "0:05:31"]

1. e4 {[%clk 0:15:43]}  c6 {[%clk 0:15:34]} 2. d4 {[%clk 0:15:43]}  d5 {[%clk 0:15:34]} 3. Nc3 {[%clk 0:15:43]}  dxe4 {[%clk 0:15:34]} 4. Nxe4 {[%clk 0:15:43]}  Nf6 {[%clk 0:15:34]} 5. Nxf6+ {[%clk 0:15:43]}  exf6 {[%clk 0:15:34]} 6. c3 {[%clk 0:15:43]}  Bd6 {[%clk 0:15:34]} 7. Bd3 {[%clk 0:15:43]}  O-O {[%clk 0:15:34]} 8. Qc2 {[%clk 0:15:43]}  Re8+ {[%clk 0:15:34]} 9. Ne2 {[%clk 0:15:43]}  h5 {[%clk 0:15:34]} 10. Be3 {[%clk 0:15:43]}  Nd7 {[%clk 0:15:34]} 11. O-O {[%clk 0:15:43]}  h4 {[%clk 0:15:34]} 12. h3 {[%clk 0:15:43]}  Nf8 {[%clk 0:15:35]} 13. Rfe1 {[%clk 0:16:07]}  Qc7 {[%clk 0:15:35]} 14. c4 {[%clk 0:16:54]}  c5 {[%clk 0:14:46]} 15. Nc3 {[%clk 0:16:54]}  cxd4 {[%clk 0:14:46]} 16. Bxd4 {[%clk 0:16:54]}  Bd7 {[%clk 0:13:07]} 17. Nd5 {[%clk 0:16:41]}  Qd8 {[%clk 0:13:07]} 18. Rxe8 {[%clk 0:16:41]}  Bxe8 {[%clk 0:13:07]} 19. Re1 {[%clk 0:16:41]}  Bc6 {[%clk 0:13:07]} 20. Bc3 {[%clk 0:16:41]}  Bxd5 {[%clk 0:12:11]} 21. cxd5 {[%clk 0:16:12]}  Bc7 {[%clk 0:12:11]} 22. Bb4 {[%clk 0:14:23]}  Bd6 {[%clk 0:10:50]} 23. Bc3 {[%clk 0:14:23]}  Bc7 {[%clk 0:10:50]} 24. Bb4 {[%clk 0:14:23]}  Rc8 {[%clk 0:10:50]} 25. Qd2 {[%clk 0:14:23]}  Bd6 {[%clk 0:10:50]} 26. Bc3 {[%clk 0:14:23]}  Bb8 {[%clk 0:10:50]} 27. Bb4 {[%clk 0:14:20]}  a5 {[%clk 0:09:39]} 28. Be7 {[%clk 0:14:20]}  Qd7 {[%clk 0:09:39]} 29. d6 {[%clk 0:12:33]}  Rc5 {[%clk 0:08:41]} 30. a4 {[%clk 0:09:55]}  Qc8 {[%clk 0:07:15]} 31. Bxf8 {[%clk 0:08:55]}  Kxf8 {[%clk 0:07:15]} 32. Bb5 {[%clk 0:08:55]}  Re5 {[%clk 0:07:15]} 33. Rc1 {[%clk 0:08:16]}  Qd8 {[%clk 0:05:31]} 34. Qxa5 {[%clk 0:08:16]}  b6 {[%clk 0:05:31]} 35. Qxb6 {[%clk 0:08:16]}  Re1+ {[%clk 0:05:31]} 36. Rxe1 {[%clk 0:08:16]} 1-0


[Site "http://www.Chess.com"]

[Event "FIDE World Rapid Chess Championship 2021"]
[White "Indjic, Aleksandar"]
[Black "Szpar, Milosz"]
[WhiteFideId "911925"]
[BlackFideId "1184989"]
[WhiteElo "2544"]
[BlackElo "2315"]
[Result "1-0"]
[Round "04"]
[TimeControl "900+10"]
[Date "2021.12.26"]
[WhiteClock "0:02:27"]
[BlackClock "0:00:25"]

1. d4 {[%clk 0:15:23]}  Nf6 {[%clk 0:15:16]} 2. c4 {[%clk 0:15:23]}  e6 {[%clk 0:15:16]} 3. Nf3 {[%clk 0:15:23]}  c5 {[%clk 0:15:16]} 4. d5 {[%clk 0:15:23]}  d6 {[%clk 0:15:16]} 5. Nc3 {[%clk 0:15:23]}  exd5 {[%clk 0:15:16]} 6. cxd5 {[%clk 0:15:23]}  g6 {[%clk 0:15:16]} 7. Bf4 {[%clk 0:15:23]}  a6 {[%clk 0:15:16]} 8. e4 {[%clk 0:15:23]}  b5 {[%clk 0:15:40]} 9. Be2 {[%clk 0:15:18]}  Bg7 {[%clk 0:12:18]} 10. O-O {[%clk 0:15:26]}  O-O {[%clk 0:12:18]} 11. e5 {[%clk 0:15:26]}  Nh5 {[%clk 0:11:05]} 12. Be3 {[%clk 0:14:50]}  dxe5 {[%clk 0:08:29]} 13. Bxc5 {[%clk 0:14:50]}  Re8 {[%clk 0:08:29]} 14. a4 {[%clk 0:12:54]}  Nd7 {[%clk 0:07:08]} 15. Be3 {[%clk 0:12:54]}  b4 {[%clk 0:07:08]} 16. Ne4 {[%clk 0:12:54]}  Ndf6 {[%clk 0:07:08]} 17. Nxf6+ {[%clk 0:11:30]}  Nxf6 {[%clk 0:06:08]} 18. Qb3 {[%clk 0:11:30]}  Bb7 {[%clk 0:06:08]} 19. Qxb4 {[%clk 0:10:50]}  Bxd5 {[%clk 0:04:54]} 20. a5 {[%clk 0:10:50]}  Qb8 {[%clk 0:04:54]} 21. Qxb8 {[%clk 0:10:17]}  Rexb8 {[%clk 0:04:18]} 22. Nxe5 {[%clk 0:10:17]}  Rxb2 {[%clk 0:04:18]} 23. Bd3 {[%clk 0:06:59]}  Re8 {[%clk 0:03:55]} 24. Nf3 {[%clk 0:07:37]}  Bxf3 {[%clk 0:01:54]} 25. gxf3 {[%clk 0:07:37]}  Nd5 {[%clk 0:01:54]} 26. Bc5 {[%clk 0:07:37]}  Rc8 {[%clk 0:01:54]} 27. Rac1 {[%clk 0:07:37]}  Nc3 {[%clk 0:01:54]} 28. Bb6 {[%clk 0:07:37]}  Ra8 {[%clk 0:01:54]} 29. Rfe1 {[%clk 0:07:37]}  Na4 {[%clk 0:01:54]} 30. Bc7 {[%clk 0:07:37]}  Bd4 {[%clk 0:01:54]} 31. Re2 {[%clk 0:07:37]}  Rxe2 {[%clk 0:01:54]} 32. Bxe2 {[%clk 0:07:37]}  Nc3 {[%clk 0:01:54]} 33. Kf1 {[%clk 0:07:37]}  Nxe2 {[%clk 0:01:54]} 34. Kxe2 {[%clk 0:07:37]}  Rc8 {[%clk 0:01:54]} 35. f4 {[%clk 0:07:37]}  Ba7 {[%clk 0:01:54]} 36. Kd1 {[%clk 0:07:37]}  Bxf2 {[%clk 0:01:54]} 37. Kd2 {[%clk 0:07:37]}  Bg1 {[%clk 0:01:54]} 38. h3 {[%clk 0:07:37]}  Bh2 {[%clk 0:01:54]} 39. Ke3 {[%clk 0:07:37]}  g5 {[%clk 0:01:54]} 40. Kf3 {[%clk 0:07:37]}  f5 {[%clk 0:01:54]} 41. Kg2 {[%clk 0:07:37]}  Bxf4 {[%clk 0:00:16]} 42. Bxf4 {[%clk 0:02:07]}  Rxc1 {[%clk 0:00:25]} 43. Bxc1 {[%clk 0:02:31]}  h6 {[%clk 0:00:25]} 44. Kf2 {[%clk 0:02:31]}  Kf7 {[%clk 0:00:25]} 45. Ke3 {[%clk 0:02:31]}  Ke6 {[%clk 0:00:25]} 46. Kd4 {[%clk 0:02:31]}  Kd6 {[%clk 0:00:25]} 47. Bd2 {[%clk 0:02:31]}  Ke6 {[%clk 0:00:25]} 48. Kc5 {[%clk 0:01:49]}  f4 {[%clk 0:00:32]} 49. Kb6 {[%clk 0:01:49]}  Kd7 {[%clk 0:00:32]} 50. Kxa6 {[%clk 0:01:52]}  Kc8 {[%clk 0:00:27]} 51. Ka7 {[%clk 0:01:52]}  f3 {[%clk 0:00:25]} 52. Be1 {[%clk 0:02:27]}  h5 {[%clk 0:00:25]} 53. h4 {[%clk 0:02:27]}  gxh4 {[%clk 0:00:25]} 54. Bxh4 {[%clk 0:02:27]}  Kc7 {[%clk 0:00:25]} 55. Bg3+ {[%clk 0:02:27]}  Kc6 {[%clk 0:00:25]} 56. a6 {[%clk 0:02:27]} 1-0


[Site "http://www.Chess.com"]